bitfinex-derivatives/quotes_ETHF0:USTF0_20250830
["timestamp","ask_amount","ask_price","bid_price","bid_amount"]
[1756524559488,1.3302,4362.3,4362.2,3.90437]
[1756524559688,1.3302,4362.3,4362.2,3.4918]
[1756524559989,1.3302,4362.3,4362.2,3.2078]
[1756524560286,1.3302,4362.3,4362.2,3.4918]
[1756524563093,1.3302,4362.3,4362.2,3.2078]
[1756524563286,1.3302,4362.3,4362.2,3.4918]
[1756524563688,1.3302,4362.3,4362.2,3.4908]
[1756524564492,1.3302,4362.8,4362.2,7.72004]
[1756524564693,0.8146,4362.4,4362.2,3.2078]
[1756524564987,0.8146,4363.3,4362.3,0.283]
[1756524565292,0.1084,4363.4,4362.9,0.41251]
[1756524565293,1.3302,4363.0,4362.9,0.41251]
[1756524565491,1.3302,4363.0,4362.9,0.69551]
[1756524566285,1.3302,4363.0,4362.9,0.283]
[1756524566585,0.5156,4363.0,4362.9,0.283]
[1756524567092,1.3302,4362.9,4362.8,0.41252]
[1756524567286,1.3302,4362.9,4362.8,0.69552]
[1756524570596,1.3302,4362.9,4362.8,0.41252]
[1756524570792,1.3302,4362.9,4362.8,0.69552]
[1756524571591,1.3302,4362.9,4362.8,0.283]
[1756524572395,1.3302,4362.9,4362.4,0.41255]
[1756524572795,1.3302,4362.9,4362.5,0.283]
[1756524573684,1.3302,4362.9,4362.4,0.41255]
[1756524573891,1.3302,4362.9,4362.5,0.282]
[1756524574699,1.3302,4362.9,4362.2,0.41258]
[1756524574897,0.5156,4362.4,4362.3,0.282]
[1756524575198,1.3302,4362.4,4362.3,0.282]
[1756524576396,1.3302,4362.2,4362.1,3.2078]
[1756524576598,1.3302,4362.2,4362.1,3.4898]
[1756524578100,1.3006,4362.4,4362.2,0.41257]
[1756524578492,1.4435,4362.6,4362.4,0.41255]
[1756524578697,1.4435,4362.6,4362.5,0.282]
[1756524580303,0.1429,4362.6,4362.5,0.282]
[1756524581306,1.4435,4362.6,4362.5,0.282]
[1756524583509,0.6871,4362.6,4362.5,0.281]
[1756524583910,0.6871,4362.6,4362.2,1.60722093]
[1756524584113,1.3006,4362.2,4362.1,3.2078]
[1756524584305,1.3006,4362.2,4362.1,3.4888]
[1756524586520,1.3006,4362.2,4362.1,3.2078]
[1756524586910,0.7564,4362.1,4361.7,33.002]
[1756524587109,0.5442,4361.9,4361.8,0.281]
[1756524587312,1.3006,4361.9,4361.8,0.281]
[1756524588316,0.5442,4361.9,4361.7,33.002]
[1756524588616,0.7564,4361.8,4361.7,33.002]
[1756524588820,0.7564,4361.8,4361.7,33.283]
[1756524589614,0.7564,4361.8,4361.7,33.002]
[1756524589920,0.7564,4361.8,4361.7,33.283]
[1756524591618,1.3006,4361.8,4361.7,0.281]
[1756524592022,0.1433,4361.9,4361.1,3.2078]
[1756524592023,1.3006,4361.2,4361.1,3.2078]
[1756524592321,1.3006,4361.2,4361.1,3.4888]
[1756524593418,1.3006,4361.2,4361.1,3.2078]
[1756524593719,1.3006,4361.2,4361.1,3.4878]
[1756524593914,1.3006,4361.2,4361.1,3.2078]
[1756524594119,1.3006,4360.6,4360.5,3.2078]
[1756524594424,1.3006,4360.6,4360.5,3.4878]
[1756524596023,1.3006,4360.6,4360.5,3.2078]
[1756524596224,1.3006,4360.6,4360.5,3.4878]
[1756524601929,1.3006,4360.6,4360.5,0.28]
[1756524602523,1.3006,4360.0,4359.9,3.2078]
[1756524603129,1.3006,4360.0,4359.9,3.4868]
[1756524603326,1.3006,4360.0,4359.9,3.2078]
[1756524603627,1.3006,4359.5,4359.4,3.2078]
[1756524603817,1.3006,4359.5,4359.4,3.4868]
[1756524604425,1.3006,4359.5,4359.4,3.2078]
[1756524604626,1.49526685,4359.5,4359.4,3.4868]
[1756524606728,1.3006,4359.5,4359.4,3.2078]
[1756524606926,0.7564,4359.5,4359.4,3.4868]
[1756524607132,0.1779,4359.8,4359.6,0.41281]
[1756524607332,0.1779,4359.8,4359.7,0.279]
[1756524608830,0.1779,4359.8,4359.7,4.279]
[1756524609829,0.1779,4359.8,4359.7,4.0]
[1756524610030,0.1779,4359.8,4359.7,4.279]
[1756524610229,0.1779,4359.8,4359.7,0.279]
[1756524610433,0.1779,4359.8,4359.7,4.279]
[1756524611835,0.1779,4359.8,4359.7,0.279]
[1756524612038,0.9601,4359.8,4359.7,0.279]
[1756524612533,0.9601,4359.8,4359.5,0.41282]
[1756524612734,0.4994,4359.6,4359.4,3.2078]
[1756524613029,1.2816,4359.6,4359.5,0.278]
[1756524614637,1.2816,4359.6,4359.4,3.62063]
[1756524614638,1.2816,4359.5,4359.4,3.2078]
[1756524614840,1.47641088,4359.5,4359.4,3.4858]
[1756524615837,0.19481088,4359.5,4359.4,3.4858]
[1756524616029,0.1949016,4359.7,4359.5,0.41282]
[1756524616231,0.1779,4359.8,4359.6,0.278]
[1756524616431,0.19496189,4359.7,4359.6,0.278]
[1756524618536,1.47656189,4359.7,4359.6,0.278]
[1756524618746,0.69436189,4359.7,4359.6,0.278]
[1756524619238,1.47656189,4359.7,4359.6,0.278]
[1756524619735,1.2816,4359.5,4359.4,3.2078]
[1756524619936,1.47656189,4359.5,4359.4,3.4858]
[1756524623135,1.47698384,4359.5,4359.4,3.4848]
[1756524625834,0.19538384,4359.5,4359.4,3.4848]
[1756524626435,0.19538384,4359.5,4359.4,7.4848]
[1756524627835,1.47698384,4359.5,4359.4,4.81729564]
[1756524628044,0.19538384,4359.5,4359.4,5.09429564]
[1756524628340,0.19538384,4359.5,4359.4,3.4848]
[1756524630138,0.145,4359.6,4359.5,0.41283]
[1756524630441,1.62211432,4359.6,4359.5,2.02270123]
[1756524630637,1.62211432,4359.6,4359.5,2.29970123]
[1756524630840,0.7822,4359.5,4359.4,4.81767123]
[1756524631138,1.47711432,4359.5,4359.4,3.4848]
[1756524632337,1.47711432,4359.5,4359.4,5.09467123]
[1756524632932,1.47711432,4359.5,4359.4,3.2078]
[1756524633337,1.47711432,4359.5,4359.4,3.4838]
[1756524633641,1.47719928,4359.5,4359.4,3.4838]
[1756524638743,0.19559928,4359.5,4359.4,3.4838]
[1756524639448,0.1085,4359.7,4359.5,0.41283]
[1756524639642,0.1085,4359.7,4359.6,0.276]
[1756524639841,0.1779,4359.8,4359.6,0.276]
[1756524640036,0.7872,4360.7,4359.6,0.276]
[1756524640037,0.5049,4360.7,4360.4,0.41274]
[1756524640238,0.5049,4360.7,4360.6,3.2078]
[1756524640441,0.5049,4360.7,4360.6,0.276]
[1756524640752,1.2921,4360.7,4360.6,0.276]
[1756524640949,0.7872,4361.4,4360.6,0.276]
[1756524641243,0.7872,4361.4,4360.8,0.4127]
[1756524641448,3.2078,4362.1,4360.9,3.4828]
[1756524641746,0.5049,4361.4,4361.0,0.41268]
[1756524641948,0.5049,4361.3,4361.1,0.275]
[1756524642449,0.7872,4361.2,4361.1,0.275]
[1756524642648,0.7872,4362.0,4361.2,0.41266]
[1756524642945,0.7872,4362.0,4361.3,0.275]
[1756524643640,1.2921,4361.4,4360.9,3.2078]
[1756524643949,1.2921,4361.0,4360.9,3.2078]
[1756524644150,1.2921,4361.0,4360.9,3.4828]
[1756524644550,1.2921,4361.0,4360.9,3.2078]
[1756524644748,1.2921,4361.0,4360.9,3.4828]
[1756524648652,1.2921,4361.0,4360.9,3.2078]
[1756524648950,1.2921,4361.0,4360.9,0.275]
[1756524649949,3.2078,4362.2,4360.9,0.275]
[1756524650249,1.2921,4361.0,4360.9,3.2078]
[1756524650441,1.2921,4361.0,4360.1,1.60924011]
[1756524650442,1.2921,4361.0,4360.7,0.274]
[1756524650944,0.7872,4361.1,4360.7,0.274]
[1756524651145,1.2921,4360.4,4360.3,3.2078]
[1756524651444,1.48568405,4360.4,4360.3,3.4818]
[1756524653050,0.19358405,4360.4,4360.3,3.4818]
[1756524654049,0.19358405,4360.4,4360.3,7.4818]
[1756524654255,0.7872,4361.3,4360.6,0.41272]
[1756524654546,0.19357778,4361.2,4360.9,3.2078]
[1756524654753,0.98078473,4361.1,4361.0,0.274]
[1756524654946,1.48568473,4361.1,4361.0,0.274]
[1756524655253,1.2921,4361.0,4360.9,3.2078]
[1756524655450,1.48568473,4361.0,4360.9,3.4818]
[1756524656356,0.19358473,4361.0,4360.9,3.4818]
[1756524656542,0.7872,4361.2,4360.9,3.4818]
[1756524656746,0.98078473,4361.1,4360.9,3.4818]
[1756524656957,0.19358473,4361.0,4360.9,3.4818]
[1756524657756,0.19358473,4361.0,4360.9,7.4818]
[1756524658254,0.7872,4361.5,4360.9,7.89449]
[1756524658452,3.2078,4362.6,4361.4,3.2078]
[1756524658653,1.2921,4362.0,4361.9,3.2078]
[1756524658857,0.19350102,4362.0,4361.9,3.2078]
[1756524659253,0.19350102,4362.0,4361.9,3.4818]
[1756524659955,1.2921,4362.7,4361.9,3.4818]
[1756524660156,0.19338531,4362.6,4362.4,3.2078]
[1756524660354,1.48548531,4362.5,4362.4,3.2078]
[1756524660951,1.48548531,4362.5,4362.4,3.4808]
[1756524661152,1.48548531,4362.5,4362.4,0.273]
[1756524662353,1.48548531,4362.5,4361.9,3.2078]
[1756524662557,1.2921,4362.0,4361.9,3.2078]
[1756524662759,1.48548531,4362.0,4361.9,3.4808]
[1756524662959,1.48548531,4362.0,4361.9,3.2078]
[1756524663161,1.48548531,4362.0,4361.9,3.4808]
[1756524663854,0.19338531,4362.0,4361.9,3.4808]
[1756524664058,1.2921,4362.7,4362.0,0.41259]
[1756524664255,0.98052595,4362.6,4362.4,3.2078]
[1756524664559,1.48542595,4362.5,4362.4,3.2078]
[1756524664760,1.48542595,4362.5,4362.4,3.4808]
[1756524665460,0.19332595,4362.5,4362.4,3.4808]
[1756524665665,0.7872,4363.5,4362.4,3.4808]
[1756524665856,0.7872,4363.9,4363.0,3.2078]
[1756524666057,1.2921,4363.1,4363.0,3.2078]
[1756524666355,1.2921,4363.1,4363.0,3.4808]
[1756524666554,1.2921,4363.1,4363.0,3.2078]
[1756524666861,1.2921,4363.1,4363.0,3.4808]
[1756524667761,1.2921,4363.1,4363.0,3.2078]
[1756524668059,1.2921,4363.1,4363.0,3.4808]
[1756524668261,5.2921,4363.1,4362.9,0.273]
[1756524668458,0.4849,4362.5,4362.4,3.2078]
[1756524668664,1.2206,4362.5,4361.8,3.2078]
[1756524668961,0.7357,4362.3,4361.9,0.273]
[1756524669262,0.7357,4362.2,4361.9,0.273]
[1756524669462,0.7357,4362.1,4361.9,0.273]
[1756524670157,0.7357,4362.1,4362.0,0.272]
[1756524671157,0.4849,4362.1,4361.8,3.2078]
[1756524671360,1.2206,4361.9,4361.8,3.2078]
[1756524671562,1.2206,4361.9,4361.8,3.4798]
[1756524671860,0.4849,4361.9,4361.8,3.4798]
[1756524672061,3.2078,4362.9,4361.8,3.4798]
[1756524672062,0.4849,4362.5,4361.8,7.4798]
[1756524672254,0.4849,4362.5,4361.8,3.4798]
[1756524672758,0.4849,4362.5,4362.1,0.41257]
[1756524672957,0.7357,4362.4,4362.3,3.62036]
[1756524673463,0.7357,4362.4,4362.3,3.89236]
[1756524673760,0.7357,4362.4,4362.3,3.4798]
[1756524674158,1.2206,4362.4,4362.3,3.2078]
[1756524674362,1.2206,4362.4,4362.2,0.272]
[1756524674761,1.2206,4362.3,4362.2,0.272]
[1756524675061,0.7357,4362.5,4362.2,0.272]
[1756524675251,0.7357,4363.3,4362.3,0.272]
[1756524675453,0.7357,4363.3,4362.7,3.2078]
[1756524675760,0.7357,4363.9,4362.8,0.68451]
[1756524675962,0.96488,4363.9,4362.8,0.68451]
[1756524676265,0.7357,4363.9,4362.8,0.68451]
[1756524676568,0.7357,4363.9,4363.0,0.41249]
[1756524676761,0.4849,4363.2,4363.1,0.272]
[1756524677064,1.2206,4363.2,4363.1,0.272]
[1756524680266,0.4849,4363.7,4363.6,0.41243]
[1756524680566,1.2206,4363.7,4363.6,0.68343]
[1756524680762,3.2078,4364.7,4363.6,0.68343]
[1756524680963,0.7357,4364.6,4363.8,0.41241]
[1756524681162,1.2206,4364.0,4363.9,0.271]
[1756524681357,0.7357,4365.2,4364.0,0.41239]
[1756524681560,0.50012,4365.3,4364.2,3.2078]
[1756524681561,1.2206,4364.3,4364.2,3.2078]
[1756524681766,1.2206,4364.3,4364.2,3.4788]
[1756524682867,0.7357,4364.7,4364.3,0.41237]
[1756524683074,0.7357,4365.5,4364.2,3.4788]
[1756524683370,206.352,4370.0,4365.0,0.4123]
[1756524683371,1.2206,4365.1,4365.0,0.4123]
[1756524683571,0.7357,4366.4,4365.5,0.41225]
[1756524683770,0.7357,4366.4,4365.7,0.41224]
[1756524684169,1.2206,4366.3,4366.2,0.41219]
[1756524684372,1.2206,4366.3,4366.2,0.68319]
[1756524686374,0.7357,4366.3,4366.2,0.68319]
[1756524687274,0.7357,4367.6,4366.5,0.41216]
[1756524687475,1.2206,4366.6,4366.2,0.41218]
[1756524687671,1.2206,4366.6,4366.0,3.2078]
[1756524687672,1.2206,4366.6,4366.4,0.41217]
[1756524687871,0.7357,4366.5,4366.4,0.41217]
[1756524688074,0.7357,4367.6,4366.5,0.41216]
[1756524688373,1.2206,4366.5,4366.4,3.2078]
[1756524688672,1.2206,4366.5,4366.4,3.4788]
[1756524689072,3.2078,4368.3,4366.4,7.70782]
[1756524689271,0.4849,4366.6,4366.5,0.41216]
[1756524689474,1.2206,4366.6,4366.5,0.68216]
[1756524689966,1.2206,4367.0,4366.9,0.41212]
[1756524690167,3.2078,4368.5,4367.1,0.41209]
[1756524690363,0.4849,4367.4,4367.3,0.41209]
[1756524690566,1.2206,4367.4,4367.3,0.41209]
[1756524691776,0.7357,4367.4,4367.3,0.41209]
[1756524691969,0.4849,4367.4,4367.3,0.41209]
[1756524692168,0.7357,4367.4,4367.3,0.41209]
[1756524692570,0.7357,4368.4,4367.5,0.41206]
[1756524692771,1.2206,4367.7,4367.6,3.4778]
[1756524694379,1.2206,4367.7,4367.6,3.2078]
[1756524694569,1.2206,4367.7,4367.6,3.4778]
[1756524698576,0.5083,4367.8,4367.7,0.41204]
[1756524698770,1.2278,4367.8,4367.7,0.68204]
[1756524699176,0.5083,4367.8,4367.7,0.27]
[1756524699674,3.2078,4369.3,4367.8,0.41204]
[1756524699877,0.7195,4368.0,4367.9,0.269]
[1756524700077,1.2278,4368.0,4367.9,0.269]
[1756524700681,0.5083,4368.0,4367.9,0.269]
[1756524700884,1.2278,4368.0,4367.8,0.41204]
[1756524701180,1.2278,4368.0,4367.9,0.269]
[1756524701376,3.2078,4368.9,4367.9,0.269]
[1756524701579,0.5083,4368.4,4368.3,0.41199]
[1756524701883,1.2278,4368.4,4368.3,0.269]
[1756524702375,1.2278,4368.4,4368.0,0.41202]
[1756524702575,1.2278,4368.4,4368.1,0.269]
[1756524703372,0.5083,4368.3,4368.1,0.681]
[1756524703571,1.2278,4368.3,4368.1,0.681]
[1756524703782,0.5083,4368.3,4368.1,3.8888]
[1756524703977,0.7195,4368.2,4368.1,3.8888]
[1756524704278,1.2278,4368.2,4368.1,3.4768]
[1756524704585,1.2278,4368.2,4368.1,3.2078]
[1756524704880,1.2278,4368.2,4368.1,3.4768]
[1756524706678,1.2278,4368.2,4368.1,3.2078]
[1756524706884,1.2278,4368.2,4368.1,3.4768]
[1756524707686,1.2278,4368.2,4368.1,3.2078]
[1756524707981,1.2278,4368.2,4368.1,3.4768]
[1756524708181,1.2278,4368.2,4368.1,3.2078]
[1756524708384,0.5083,4368.2,4368.1,0.269]
[1756524708983,1.2278,4368.2,4368.1,0.269]
[1756524709683,3.2078,4368.6,4368.0,0.269]
[1756524709888,0.5083,4368.1,4368.0,0.269]
[1756524710187,1.2278,4368.1,4368.0,0.269]
[1756524710386,0.5083,4368.1,4367.6,3.2078]
[1756524710685,0.5083,4367.8,4367.6,3.2078]
[1756524710885,1.2278,4367.8,4367.7,0.268]
[1756524711585,3.9273,4368.5,4367.7,0.268]
[1756524711782,1.2278,4367.8,4367.7,0.268]
[1756524711981,0.5083,4367.5,4367.4,0.268]
[1756524712183,1.2278,4367.5,4367.4,0.268]
[1756524712381,0.5083,4367.5,4367.1,3.2078]
[1756524712686,3.2078,4368.1,4367.1,3.2078]
[1756524712687,0.7195,4367.2,4367.1,3.2078]
[1756524712876,1.2278,4367.2,4367.1,3.4758]
[1756524713486,1.2278,4367.2,4367.1,3.2078]
[1756524713982,1.2278,4367.2,4367.1,3.4758]
[1756524714187,1.2278,4367.2,4367.1,0.268]
[1756524715191,0.5083,4367.2,4367.1,0.268]
[1756524715377,1.19483592,4368.5,4367.1,0.268]
[1756524715581,0.7195,4368.3,4367.5,3.61987]
[1756524715781,0.7195,4368.3,4367.6,0.268]
[1756524716081,0.7195,4368.2,4367.9,0.41203]
[1756524716282,0.7195,4368.2,4368.0,0.268]
[1756524716482,0.7195,4369.1,4368.3,0.41199]
[1756524716681,0.52663651,4369.0,4368.4,0.268]
[1756524716877,0.5083,4368.8,4368.4,0.268]
[1756524717084,3.2078,4369.2,4368.4,0.268]
[1756524717085,0.7195,4368.6,4368.4,0.268]
[1756524717382,1.2278,4368.6,4368.4,0.268]
[1756524717586,0.7195,4368.5,4368.4,0.268]
[1756524717987,0.7195,4368.4,4368.1,3.2078]
[1756524718288,0.7195,4368.2,4368.1,3.2078]
[1756524718492,1.2278,4368.2,4368.1,3.4758]
[1756524718786,3.2078,4369.3,4368.1,3.4758]
[1756524718990,1.24629988,4369.2,4368.2,0.412]
[1756524719290,0.7195,4369.2,4368.2,0.412]
[1756524719882,0.7195,4369.2,4368.3,0.268]
[1756524720084,1.2278,4368.4,4368.3,0.268]
[1756524720580,0.5083,4368.4,4368.1,3.2078]
[1756524720785,1.2278,4368.2,4368.1,3.2078]
[1756524720984,1.2278,4368.2,4368.1,3.4758]
[1756524721982,0.7195,4368.2,4368.1,3.4758]
[1756524722784,0.7195,4369.4,4368.2,0.412]
[1756524723085,1.2278,4368.3,4368.2,0.412]
[1756524723987,3.2078,4369.5,4368.2,0.412]
[1756524724190,1.24617228,4369.4,4368.4,0.41198]
[1756524724386,0.5083,4368.6,4368.5,0.267]
[1756524724585,1.2278,4368.6,4368.5,0.267]
[1756524726681,0.5083,4368.6,4368.5,0.267]
[1756524726882,1.2278,4368.6,4368.5,0.267]
[1756524727394,1.2278,4368.6,4368.2,0.41201]
[1756524727597,1.2278,4368.6,4368.3,0.267]
[1756524729483,1.2278,4368.6,4368.4,0.41199]
[1756524729799,0.5083,4368.6,4368.4,0.41199]
[1756524729989,0.73,4368.5,4368.4,0.41199]
[1756524730190,1.228,4368.5,4368.4,0.67899]
[1756524734692,0.498,4369.2,4368.4,0.267]
[1756524734896,1.228,4369.2,4369.1,3.61972]
[1756524735196,1.228,4369.2,4369.1,3.88572]
[1756524735693,1.228,4369.2,4369.1,3.61972]
[1756524735894,1.228,4369.8,4369.7,0.41186]
[1756524736091,0.73,4369.7,4369.1,3.2078]
[1756524736395,1.228,4369.2,4369.1,3.2078]
[1756524736594,1.228,4369.2,4369.1,3.4738]
[1756524736793,0.73,4370.1,4369.6,0.41187]
[1756524736998,1.228,4369.2,4369.1,3.61972]
[1756524737195,1.228,4369.2,4369.1,3.88572]
[1756524739100,1.228,4369.2,4369.1,3.4738]
[1756524739604,1.228,4369.2,4368.2,0.85104011]
[1756524739605,0.22889,4369.1,4368.2,0.85104011]
[1756524739809,0.22889,4369.1,4367.7,2.05883414]
[1756524739810,3.2078,4368.3,4367.1,0.4121]
[1756524740105,0.52558931,4369.0,4367.8,0.7444]
[1756524740106,3.2078,4368.4,4367.8,0.7444]
[1756524740397,0.22894,4369.0,4368.3,0.4711]
[1756524740398,3.2078,4369.0,4368.3,0.4711]
[1756524740605,3.2078,4369.0,4368.4,1.0104]
[1756524741005,3.2078,4369.0,4368.5,0.41198]
[1756524741206,3.2078,4369.6,4368.9,0.4711]
[1756524741504,3.2078,4369.6,4368.9,0.7371]
[1756524742000,3.2078,4369.6,4369.5,0.4711]
[1756524742207,3.2078,4369.6,4369.5,1.2155]
[1756524742600,7.2078,4369.6,4369.0,0.7444]
[1756524742805,0.1,4370.2,4368.0,1.03005]
[1756524742806,3.2078,4370.1,4369.2,1.4815]
[1756524742999,3.2078,4370.1,4369.3,0.266]
[1756524743200,3.2078,4370.1,4369.3,1.149]
[1756524743400,3.2078,4369.6,4369.3,0.266]
[1756524743601,3.2078,4369.6,4368.7,1.15635]
[1756524743800,3.2078,4369.6,4368.8,0.266]
[1756524744002,3.2078,4369.6,4368.4,0.7444]
[1756524744003,3.2078,4369.0,4368.9,0.266]
[1756524744205,3.2078,4369.0,4368.6,0.266]
[1756524744406,3.2078,4369.6,4368.8,1.15635]
[1756524744905,0.22887,4369.5,4369.0,0.41193]
[1756524745208,0.22887,4369.5,4369.2,0.41191]
[1756524745504,3.2078,4369.6,4369.4,0.41189]
[1756524746104,3.2078,4369.6,4369.4,1.14899]
[1756524746313,3.2078,4370.1,4370.0,0.41184]
[1756524746908,0.1,4370.2,4370.1,0.7444]
[1756524747104,0.1,4370.2,4370.1,1.2155]
[1756524750109,0.1,4370.2,4370.1,1.4805]
[1756524750805,3.2078,4370.8,4370.7,0.41177]
[1756524751012,3.2078,4371.3,4370.7,0.7444]
[1756524751212,3.2078,4371.3,4371.0,0.41174]
[1756524751412,3.2078,4371.3,4371.1,1.2155]
[1756524751612,3.2078,4371.3,4371.2,0.7444]
[1756524751808,3.2078,4371.3,4371.2,1.2155]
[1756524752009,3.2078,4371.8,4371.7,1.15608]
[1756524752510,3.2078,4371.8,4371.7,1.62718]
[1756524752710,3.2078,4372.3,4372.0,0.41165]
[1756524753208,3.2078,4372.3,4371.7,0.7444]
[1756524753411,32.965,4373.1,4371.7,0.41168]
[1756524753412,3.2078,4371.8,4371.7,0.41168]
[1756524754208,3.2078,4371.8,4371.7,1.62718]
[1756524755613,3.2078,4371.9,4371.7,1.62718]
[1756524755912,3.2078,4371.8,4371.5,0.265]
[1756524756609,3.2078,4371.8,4371.5,1.42109]
[1756524756805,0.0648,4371.6,4371.5,1.42109]
[1756524757014,0.1053,4371.6,4371.5,1.92589]
[1756524757315,3.2078,4372.4,4371.6,0.7349]
[1756524757519,3.2078,4372.4,4372.0,0.41164]
[1756524757716,3.2078,4372.4,4371.9,0.41166]
[1756524758315,0.0648,4372.1,4372.0,1.2397]
[1756524758725,0.1053,4371.6,4371.5,1.5047]
[1756524758912,3.2078,4372.4,4372.3,1.2397]
[1756524758913,3.3131,4372.4,4372.3,1.2397]
[1756524759107,3.2726,4372.4,4372.3,1.2397]
[1756524759416,0.1053,4372.4,4372.3,1.2397]
[1756524759719,3.2078,4372.9,4372.3,1.2397]
[1756524759720,3.2483,4372.9,4372.3,1.65131]
[1756524760918,0.1053,4372.4,4372.3,1.65131]
[1756524762213,0.0648,4372.4,4372.3,1.65131]
[1756524762418,0.0405,4372.8,4372.3,1.65131]
[1756524762618,3.2078,4372.9,4372.4,0.7349]
[1756524762816,3.2078,4372.9,4372.2,0.264]
[1756524763007,0.0405,4372.8,4372.3,0.7349]
[1756524763212,0.0648,4372.8,4372.7,0.5048]
[1756524763412,0.1053,4372.8,4372.7,1.2397]
[1756524763617,0.0648,4372.5,4372.4,0.7349]
[1756524763808,0.1053,4372.5,4372.4,0.7349]
[1756524764014,0.1053,4372.5,4372.4,1.2397]
[1756524766318,3.2078,4372.9,4372.4,1.2397]
[1756524766519,3.2078,4372.9,4372.8,1.2397]
[1756524766520,3.2726,4372.9,4372.8,1.2397]
[1756524766827,3.3131,4372.9,4372.8,1.2397]
[1756524767910,0.1053,4372.8,4372.7,0.7349]
[1756524768114,0.1053,4372.8,4372.7,1.2397]
[1756524769217,3.2078,4372.9,4372.8,1.65127]
[1756524769426,3.2078,4372.9,4372.8,5.91527]
[1756524769617,3.2078,4373.5,4373.4,1.65121]
[1756524770419,3.2078,4373.5,4373.4,1.91521]
[1756524771321,4.4057,4374.0,4373.9,1.2397]
[1756524771522,3.2078,4374.0,4373.9,1.2397]
[1756524772618,3.2078,4374.0,4373.9,1.5037]
[1756524773116,3.2078,4374.5,4374.1,1.2397]
[1756524774826,3.2078,4374.5,4374.1,1.5027]
[1756524775219,3.2078,4374.5,4374.1,1.2397]
[1756524775524,3.2078,4374.5,4374.1,1.5027]
[1756524775918,0.7193,4374.6,4374.1,1.2397]
[1756524776119,2.9979,4374.2,4374.1,1.2397]
[1756524776325,6.2057,4374.2,4374.1,1.5027]
[1756524776526,2.9979,4374.2,4374.1,1.5027]
[1756524776929,2.9979,4374.2,4374.1,1.2397]
[1756524777126,2.9979,4374.2,4374.0,0.263]
[1756524777315,0.7193,4374.1,4374.0,0.263]
[1756524777521,1.1979,4374.1,4373.6,0.7349]
[1756524777717,1.8,4374.2,4373.5,34.0884]
[1756524777718,0.4786,4373.6,4373.5,34.0884]
[1756524778028,3.6864,4373.9,4373.8,1.2397]
[1756524778223,3.6864,4373.9,4373.8,1.5027]
[1756524778721,3.2078,4373.9,4373.8,1.5027]
[1756524778922,3.6864,4373.9,4373.8,1.5027]
[1756524779123,3.6864,4373.9,4373.8,1.2397]
[1756524779124,4.4057,4373.9,4373.8,1.2397]
[1756524779323,3.6864,4373.9,4373.8,1.5027]
[1756524779818,1.1979,4373.7,4373.6,1.2397]
[1756524780222,1.1979,4373.7,4373.5,32.942]
[1756524780223,0.7193,4373.6,4373.5,32.942]
[1756524780418,0.7193,4373.6,4373.4,0.263]
[1756524780419,0.4786,4373.5,4373.4,0.263]
[1756524780616,4.4057,4373.5,4373.4,0.263]
[1756524781323,4.4057,4373.5,4373.1,0.263]
[1756524781522,1.1979,4373.3,4373.2,1.2397]
[1756524781723,1.1979,4373.3,4373.2,1.5027]
[1756524781930,1.1979,4373.3,4373.2,0.7678]
[1756524782224,1.1979,4373.0,4372.9,0.5048]
[1756524782426,1.1979,4373.0,4372.9,0.263]
[1756524782628,1.1979,4373.0,4372.9,1.5027]
[1756524783630,1.1979,4373.0,4372.9,1.2397]
[1756524784124,1.1979,4372.8,4372.4,0.7349]
[1756524784324,0.4786,4372.6,4372.5,0.263]
[1756524784523,1.1979,4372.6,4372.4,0.7349]
[1756524784722,0.4786,4372.6,4372.4,0.7349]
[1756524784928,1.1979,4372.5,4372.4,0.7349]
[1756524785124,1.1979,4372.5,4372.4,1.5027]
[1756524787018,0.4786,4372.5,4372.4,1.5027]
[1756524787221,1.1764,4372.5,4372.4,1.2397]
[1756524787424,1.1764,4372.5,4371.9,32.936]
[1756524787621,1.8,4374.2,4371.9,32.936]
[1756524787622,1.1836,4372.0,4371.9,32.936]
[1756524787929,0.4858,4371.7,4370.7,0.41177]
[1756524788231,4.3914,4371.4,4371.3,1.229]
[1756524788524,4.3914,4371.4,4371.3,0.262]
[1756524788918,4.3914,4371.4,4371.0,0.7365]
[1756524789227,0.4858,4371.2,4371.1,1.491]
[1756524789422,1.1836,4371.2,4371.1,1.229]
[1756524789625,1.1836,4371.2,4371.1,1.491]
[1756524790026,1.1836,4371.2,4371.1,0.4925]
[1756524790226,1.1836,4371.2,4371.1,0.7545]
[1756524790432,1.1836,4371.2,4371.1,0.4925]
[1756524790630,1.1836,4371.2,4371.1,0.7545]
[1756524790820,0.6978,4371.1,4370.5,32.937]
[1756524791025,0.6978,4371.0,4370.6,0.262]
[1756524791224,1.1836,4370.7,4370.6,1.229]
[1756524791524,1.1836,4370.7,4370.6,1.491]
[1756524791726,0.4858,4370.7,4370.6,1.491]
[1756524792132,1.1836,4370.7,4370.6,1.491]
[1756524792429,0.4858,4370.7,4370.6,1.491]
[1756524792630,0.6978,4371.1,4370.6,1.491]
[1756524792827,1.1836,4370.8,4370.7,1.491]
[1756524793135,0.4858,4370.8,4370.7,1.491]